bitfinex-derivatives/quotes_BNBF0:USTF0_20250708
["timestamp","ask_amount","ask_price","bid_price","bid_amount"]
[1751986795134,1.69823462,658.72,658.25,1.746]
[1751986795334,1.69823462,658.73,658.25,1.746]
[1751986795635,1.69823462,658.74,658.25,1.746]
[1751986796240,1.69823462,658.74,658.08,1.70784002]
[1751986797537,1.69823462,658.75,658.07,1.70784002]
[1751986798436,1.69823462,658.76,658.07,1.70784002]
[1751986798740,1.69823462,658.76,658.08,1.838]
[1751986798937,1.69823462,658.75,658.08,1.838]
[1751986799138,1.69823462,658.76,658.08,1.838]
[1751986800038,1.69823462,658.75,658.08,1.838]
[1751986800442,1.69823462,658.75,658.08,3.54584002]
[1751986800639,1.69823462,658.76,658.08,1.838]
[1751986801442,1.69823462,658.81,658.08,1.838]
[1751986801839,1.69823462,658.74,658.08,1.838]
[1751986802641,1.69823462,658.79,658.08,1.838]
[1751986805146,1.69823462,658.78,658.08,1.838]
[1751986808741,1.69823462,658.77,658.08,1.838]
[1751986810746,0.26425797,658.82,658.08,1.838]
[1751986810747,1.69823462,658.72,658.08,1.838]
[1751986811148,0.26425797,658.82,658.08,1.838]
[1751986811346,1.69286657,658.69,658.08,3.54041756]
[1751986811544,1.69286657,658.69,658.08,1.70241756]
[1751986811745,1.69286657,658.75,657.91,1.70241756]
[1751986812152,1.69286657,658.74,657.9,1.70241756]
[1751986812556,1.69286657,658.73,657.89,1.70241756]
[1751986812852,1.69286657,658.74,657.88,1.70241756]
[1751986814656,1.69286657,658.74,657.89,1.70241756]
[1751986815456,1.69286657,658.74,657.84,1.436]
[1751986815457,1.69286657,658.71,657.94,1.70241756]
[1751986816864,0.26425797,658.82,657.84,1.436]
[1751986817062,1.69224434,658.71,657.94,1.70236015]
[1751986817658,1.69224434,658.71,657.95,1.70236015]
[1751986818359,1.69224434,658.7,657.97,1.70236015]
[1751986819362,1.69224434,658.69,657.97,1.70236015]
[1751986819762,1.69224434,658.7,657.97,1.70236015]
[1751986820059,1.69224434,658.69,657.98,1.70236015]
[1751986821466,1.69224434,658.68,657.99,1.70236015]
[1751986822662,1.69194583,658.65,657.84,3.70544205]
[1751986822865,1.69194583,658.65,658.04,1.70246299]
[1751986824165,1.69194583,658.65,658.05,1.70246299]
[1751986824366,1.69194583,658.64,658.05,1.70246299]
[1751986824861,1.69194583,658.66,658.03,1.70246299]
[1751986825060,1.69194583,658.65,658.02,1.70246299]
[1751986826067,1.69194583,658.65,658.03,1.70246299]
[1751986826466,0.98696506,658.77,658.02,1.70246299]
[1751986826467,1.69194583,658.64,658.02,1.70246299]
[1751986827367,1.69194583,658.64,658.03,1.70246299]
[1751986828463,1.69194583,658.65,658.01,1.70246299]
[1751986828968,1.69194583,658.64,658.02,1.70246299]
[1751986829163,1.69194583,658.64,658.03,1.70246299]
[1751986829464,1.69194583,658.63,658.03,1.70246299]
[1751986829662,1.69194583,658.62,658.04,1.70246299]
[1751986829861,1.69194583,658.63,658.03,1.70246299]
[1751986830665,1.69194583,658.65,658.01,1.70246299]
[1751986830964,1.69261937,658.64,658.02,1.70310523]
[1751986831564,1.69261937,658.61,658.05,1.70310523]
[1751986831867,1.69261937,658.62,658.05,1.70310523]
[1751986832067,1.69261937,658.61,658.05,1.70310523]
[1751986832567,1.69261937,658.62,658.05,1.70310523]
[1751986832770,1.69261937,658.61,658.05,1.70310523]
[1751986832966,0.98696506,658.72,657.94,2.26944205]
[1751986832967,1.69261937,658.62,658.06,1.70310523]
[1751986833565,0.98696506,658.73,657.88,0.26430514]
[1751986833566,1.69261937,658.61,658.07,1.70310523]
[1751986833773,1.69261937,658.62,658.06,1.70310523]
[1751986834367,1.69261937,658.63,658.04,1.70310523]
[1751986835469,1.69261937,658.62,658.04,1.70310523]
[1751986836369,1.69261937,658.61,658.04,1.70310523]
[1751986837268,1.69261937,658.61,658.05,1.70310523]
[1751986837970,1.69261937,658.65,657.98,1.70310523]
[1751986838370,1.69261937,658.64,657.99,1.70310523]
[1751986838870,1.69261937,658.55,657.89,1.70310523]
[1751986839272,1.69261937,658.55,657.88,0.26430514]
[1751986839273,1.69261937,658.53,657.91,1.70310523]
[1751986839569,1.69261937,658.52,657.9,1.70310523]
[1751986839776,1.69261937,658.52,657.91,1.70310523]
[1751986840070,1.69261937,658.5,657.9,1.70310523]
[1751986840373,1.69261937,658.49,657.9,1.70310523]
[1751986840568,1.69261937,658.42,657.88,0.26430514]
[1751986841269,1.69261937,658.42,657.84,1.436]
[1751986841672,1.69261937,658.42,657.84,3.13910523]
[1751986841973,1.69261937,658.43,657.84,1.436]
[1751986842176,0.26425797,658.82,657.84,1.436]
[1751986842177,1.69261937,658.44,657.84,1.436]
[1751986842474,1.69261937,658.43,657.84,1.436]
[1751986842674,1.69261937,658.45,657.84,1.436]
[1751986843070,1.69261937,658.46,657.84,1.436]
[1751986843274,1.69261937,658.45,657.84,1.436]
[1751986843673,1.69261937,658.46,657.84,1.436]
[1751986844272,1.69261937,658.45,657.84,1.436]
[1751986845076,1.69261937,658.46,657.84,1.436]
[1751986845376,1.69261937,658.43,657.85,1.70310523]
[1751986845571,1.69261937,658.44,657.85,1.70310523]
[1751986845773,1.69261937,658.44,657.86,1.70310523]
[1751986846278,1.69261937,658.49,657.93,1.70310523]
[1751986847073,1.69261937,658.53,657.86,1.70310523]
[1751986847278,1.69261937,658.54,657.86,1.70310523]
[1751986848280,1.69261937,658.59,657.91,1.70310523]
[1751986848477,1.69261937,658.62,657.94,1.70310523]
[1751986850482,1.69261937,658.63,657.93,1.70310523]
[1751986850882,1.69261937,658.62,657.94,1.70310523]
[1751986851086,1.69261937,658.58,658.0,1.70310523]
[1751986851287,1.69261937,658.62,658.04,1.70310523]
[1751986851483,1.69261937,658.63,658.05,1.70310523]
[1751986852482,1.69261937,658.64,658.04,1.70310523]
[1751986852984,1.69267557,658.64,658.04,1.703108]
[1751986853184,1.69267557,658.65,658.05,1.703108]
[1751986854888,1.69267557,658.64,658.06,1.703108]
[1751986857190,1.69267557,658.65,658.05,1.703108]
[1751986857390,1.69267557,658.66,658.03,1.703108]
[1751986858391,1.69267557,658.67,658.02,1.703108]
[1751986859191,1.69267557,658.66,658.02,1.703108]
[1751986859392,1.69267557,658.67,658.02,1.703108]
[1751986861091,1.69267557,658.66,658.02,1.703108]
[1751986861689,1.69267557,658.71,658.06,1.703108]
[1751986863095,1.69274291,658.71,658.06,1.70288736]
[1751986865096,1.69274291,658.7,658.08,1.70288736]
[1751986866692,1.25151726,658.82,658.05,1.70288736]
[1751986866693,1.69274291,658.72,658.05,1.70288736]
[1751986868295,1.69274291,658.71,658.05,1.70288736]
[1751986869496,1.69274291,658.72,658.05,1.70288736]
[1751986869700,1.69274291,658.71,658.05,1.70288736]
[1751986870900,1.69274291,658.71,658.06,1.70288736]
[1751986872097,1.69274291,658.71,658.07,1.348]
[1751986874001,1.69274291,658.77,658.12,1.70288736]
[1751986874202,1.69274291,658.78,658.12,1.70288736]
[1751986874502,1.69241559,658.78,658.12,1.70242572]
[1751986874899,1.69241559,658.79,658.13,1.70242572]
[1751986875303,1.69241559,658.76,658.17,1.70242572]
[1751986876506,1.69241559,658.76,658.16,1.70242572]
[1751986876806,1.69241559,658.77,658.18,1.70242572]
[1751986877604,1.69241559,658.77,658.19,1.70242572]
[1751986877804,0.26425797,658.82,658.07,1.348]
[1751986877805,1.69241559,658.78,658.18,1.70242572]
[1751986878502,1.69241559,658.78,658.17,1.70242572]
[1751986878905,1.69241559,658.78,658.18,1.70242572]
[1751986879105,1.69241559,658.78,658.17,1.70242572]
[1751986880209,1.69241559,658.79,658.17,1.70242572]
[1751986881006,1.69241559,658.8,658.19,1.70242572]
[1751986881205,1.69241559,658.81,658.19,1.70242572]
[1751986881606,1.69241559,658.8,658.19,1.70242572]
[1751986881806,1.69131559,658.8,658.19,1.70111036]
[1751986882007,1.69131559,658.81,658.19,1.70111036]
[1751986882409,1.69131559,658.82,658.17,1.70111036]
[1751986882609,1.69131559,658.91,658.26,1.70111036]
[1751986882911,0.98723908,658.94,658.22,1.70111036]
[1751986882912,1.69131559,658.94,658.22,1.70111036]
[1751986883309,1.69131559,658.95,658.22,1.70111036]
[1751986884518,1.95552942,658.96,658.21,1.70111036]
[1751986885316,0.26421383,658.96,658.2,1.70111036]
[1751986886017,0.26421383,658.96,658.07,1.348]
[1751986886317,0.26421383,658.96,658.19,1.69947026]
[1751986887218,0.26421383,658.96,658.18,1.69947026]
[1751986887418,0.26421383,658.96,658.17,1.69947026]
[1751986889116,0.26421383,658.96,658.16,1.69947026]
[1751986889320,0.26421383,658.96,658.15,1.69947026]
[1751986889516,0.26421383,658.96,658.14,1.69947026]
[1751986890321,0.26421383,658.96,658.07,1.348]
[1751986894020,0.26421383,658.96,658.04,1.69947026]
[1751986896521,0.26421383,658.96,658.03,1.69947026]
[1751986898023,0.26421383,658.96,658.04,1.89]
[1751986903131,0.26421383,658.96,658.04,3.58947026]
[1751986903436,1.68988564,659.23,658.09,1.69947026]
[1751986903737,0.26417271,659.04,658.09,1.69947026]
[1751986904231,0.26417271,659.04,658.1,1.69947026]
[1751986906135,0.26417271,659.04,658.11,1.69947026]
[1751986908939,0.26417271,659.04,658.16,1.69947026]
[1751986911439,0.26417271,659.04,658.18,1.69947026]
[1751986912646,0.26417271,659.04,658.16,1.69947026]
[1751986913345,0.26417271,659.04,658.19,1.69947026]
[1751986914345,0.26417271,659.04,658.24,1.69947026]
[1751986914643,0.26417271,659.04,658.26,1.69947026]
[1751986917953,0.26417271,659.04,658.27,1.69947026]
[1751986918452,0.26417271,659.04,658.28,1.69947026]
[1751986921053,0.26417271,659.04,658.27,1.69947026]
[1751986921263,0.26417271,659.04,658.28,1.69947026]
[1751986922459,0.26417271,659.04,658.04,1.89]
[1751986922460,0.26417271,659.04,658.33,1.69947026]
[1751986925564,1.95405835,659.04,658.35,1.69947026]
[1751986927559,1.68988564,659.03,658.35,1.69947026]
[1751986927757,1.95405835,659.04,658.35,1.69947026]
[1751986928464,1.68988564,659.03,658.36,1.69947026]
[1751986929360,1.68988564,659.02,658.36,1.69947026]
[1751986930364,1.68988564,659.01,658.37,1.69947026]
[1751986931365,1.68988564,659.0,658.38,1.69947026]
[1751986932467,0.26417271,659.04,658.39,1.69947026]
[1751986932468,1.68988564,658.99,658.39,1.69947026]
[1751986933263,1.68988564,658.98,658.4,1.69947026]
[1751986934065,1.68988564,658.97,658.41,1.69947026]
[1751986935466,1.68988564,658.96,658.42,1.69947026]
[1751986935668,1.68988564,658.97,658.41,1.69947026]
[1751986936366,1.68988564,658.96,658.42,1.69947026]
[1751986937469,1.68988564,658.95,658.43,1.69947026]
[1751986938369,1.68988564,658.95,658.44,1.69947026]
[1751986939166,1.68988564,658.94,658.44,1.69947026]
[1751986940470,1.68988564,658.93,658.44,1.69947026]
[1751986940968,1.68988564,658.94,658.45,1.69947026]
[1751986941471,1.68988564,658.93,658.45,1.69947026]
[1751986942371,1.68988564,658.94,658.43,1.69947026]
[1751986942872,0.26417271,659.04,658.38,1.69947026]
[1751986943972,1.68988564,659.07,658.38,1.69947026]
[1751986945169,1.68988564,659.07,658.39,1.69947026]
[1751986946370,1.68988564,659.07,658.38,1.69947026]
[1751986946570,1.68988564,659.07,658.39,1.69947026]
[1751986950378,1.68988564,659.06,658.4,1.69947026]
[1751986951376,1.68988564,659.06,658.39,1.69947026]
[1751986952276,1.68988564,659.06,658.38,1.974]
[1751986952277,1.68988564,659.06,658.4,1.69947026]
[1751986952680,1.68988564,659.0,658.5,1.69947026]
[1751986953084,1.68988564,659.01,658.47,1.69947026]
[1751986953585,1.68988564,659.03,658.47,1.69947026]
[1751986953784,1.68988564,659.03,658.45,1.69947026]
[1751986954781,1.68988564,659.02,658.44,1.69947026]
[1751986955888,1.68988564,659.01,658.44,1.69947026]
[1751986956485,1.68988564,659.02,658.44,1.69947026]
[1751986957685,1.68988564,659.01,658.43,1.69947026]
[1751986958290,1.68988564,659.02,658.42,1.69947026]
[1751986959588,1.68988564,659.02,658.38,1.974]
[1751986959589,1.68988564,658.97,658.38,3.67347026]
[1751986960189,1.68988564,658.96,658.38,1.974]
[1751986960484,1.68988564,658.95,658.38,3.67347026]
[1751986962693,1.68988564,658.95,658.39,1.69947026]
[1751986963992,1.68988564,658.94,658.38,3.67347026]
[1751986965593,1.68988564,658.96,658.38,1.974]
[1751986967296,1.68988564,658.95,658.38,1.974]
[1751986968097,1.68988564,658.95,658.38,3.67347026]
[1751986971496,1.68988564,658.94,658.38,3.67347026]
[1751986972196,1.68988564,658.95,658.38,1.974]
[1751986975503,1.68988564,658.93,658.41,1.69947026]
[1751986977997,1.68988564,658.92,658.41,1.69947026]
[1751986979302,1.68988564,658.93,658.39,1.69947026]
[1751986979498,1.68988564,658.93,658.4,1.69947026]
[1751986981601,1.68988564,658.92,658.41,1.69947026]
[1751986982106,1.68988564,658.92,658.42,1.69947026]
[1751986986004,1.68988564,658.91,658.42,1.69947026]
[1751986988208,1.68988564,658.91,658.43,1.69947026]
[1751986988406,1.68988564,658.91,658.42,1.69947026]
[1751986988810,1.68988564,658.91,658.43,1.69947026]
[1751986989110,1.68988564,658.9,658.45,1.69947026]
[1751986991209,1.68988564,658.89,658.46,1.69947026]
[1751986992214,1.68988564,658.88,658.47,1.69947026]
[1751986993311,1.68988564,658.91,658.42,1.69947026]
[1751986998933,0.99302724,659.04,658.38,1.974]
[1751986999130,1.70054719,658.91,658.42,1.70539918]
[1751986999322,1.70054719,658.92,658.41,1.70539918]
[1751987000429,1.70054719,658.92,658.4,1.70539918]
[1751987003124,1.70054719,658.91,658.43,1.70539918]
[1751987004530,1.70054719,658.91,658.42,1.70539918]
[1751987005125,1.70054719,658.91,658.43,1.70539918]
[1751987005425,1.70054719,658.9,658.43,1.70539918]
[1751987005724,1.70054719,658.9,658.44,1.392]
[1751987006731,0.99302724,659.02,658.44,1.392]
[1751987006926,1.70061107,658.9,658.44,1.392]
[1751987007129,1.70061107,658.89,658.44,1.392]
[1751987007329,0.26413963,659.11,658.44,1.392]
[1751987007330,1.70061107,658.94,658.44,1.392]
[1751987008032,1.70061107,658.91,658.44,1.392]
[1751987008232,0.26413963,659.11,658.44,1.392]
[1751987008233,1.70061107,658.86,658.44,1.392]
[1751987008432,1.70061107,658.87,658.44,1.392]
[1751987013838,1.70061107,658.86,658.44,1.392]
[1751987014039,1.70061107,658.83,658.44,1.392]
[1751987014240,1.70061107,658.82,658.44,1.392]
[1751987016041,1.70061107,658.81,658.44,1.392]
[1751987016342,1.70061107,658.82,658.44,1.392]
[1751987017442,1.70061107,658.81,658.44,1.392]
[1751987018547,1.69884325,658.82,658.44,1.392]
[1751987022543,1.69884325,658.83,658.44,1.392]
[1751987024643,1.69884325,658.84,658.44,1.392]
[1751987024846,1.69884325,658.83,658.44,1.392]
[1751987029246,1.69884325,658.84,658.44,1.392]
[1751987030750,1.69884325,658.85,658.44,1.392]
[1751987032344,1.69884325,658.84,658.44,1.392]
[1751987033744,1.69884325,658.85,658.3,1.70537254]
[1751987035645,1.69884325,658.85,658.31,1.70537254]
[1751987036251,1.69884325,658.85,658.3,1.70537254]
[1751987036548,1.69884325,658.85,658.31,1.929]
[1751987037649,1.69884325,658.86,658.31,1.929]
[1751987038250,1.69884325,658.87,658.31,1.929]
[1751987039452,1.69884325,658.88,658.31,1.929]
[1751987040653,1.69884325,658.87,658.31,1.929]
[1751987041955,0.99154717,659.02,658.31,1.929]
[1751987041956,1.69884325,658.88,658.31,1.929]
[1751987043957,1.69884325,658.85,658.33,1.70537254]
[1751987044155,1.69884325,658.83,658.35,1.70537254]
[1751987044953,1.69884325,658.83,658.36,1.70537254]
[1751987045157,1.69884325,658.85,658.33,1.70537254]
[1751987046253,1.69884325,658.84,658.33,1.70537254]
[1751987047153,1.69884325,658.85,658.33,1.70537254]
[1751987047356,1.69884325,658.84,658.33,1.70537254]
[1751987047557,1.69884325,658.85,658.33,1.70537254]
[1751987048464,1.69884325,658.85,658.32,1.70537254]
[1751987048668,1.69884325,658.84,658.31,3.63437254]
[1751987051867,1.69884325,658.88,658.31,1.929]
[1751987052067,1.69884325,658.91,658.31,1.929]
[1751987052367,1.69884325,658.9,658.31,1.929]
[1751987055166,1.69884325,658.92,658.31,1.929]
[1751987055359,1.69884325,658.91,658.31,1.929]
[1751987055561,1.69884325,658.9,658.31,1.929]
[1751987055759,1.69884325,658.82,658.31,1.929]
[1751987058566,1.69884325,658.8,658.31,1.929]
[1751987059267,1.69884325,658.81,658.31,1.929]
[1751987059466,1.69884325,658.8,658.31,1.929]
[1751987059661,1.69884325,658.81,658.31,1.929]
[1751987060868,1.69884325,658.78,658.31,1.929]
[1751987062370,1.69884325,658.77,658.31,1.929]
[1751987062875,1.69884325,658.76,658.31,1.929]
[1751987063069,1.69884325,658.75,658.31,1.929]
[1751987065366,1.69884325,658.74,658.31,1.929]
[1751987066070,1.69905309,658.75,658.31,1.929]
[1751987066268,1.69905309,658.74,658.31,1.929]
[1751987067267,1.69905309,658.75,658.31,1.929]
[1751987068765,1.69905309,658.76,658.31,1.929]
[1751987070065,1.69905309,658.75,658.31,1.929]
[1751987073872,1.69905309,658.76,658.31,1.929]
[1751987076276,1.69905309,658.77,658.31,1.929]
[1751987077177,1.69905309,658.76,658.31,1.929]
[1751987077574,1.69905309,658.75,658.31,1.929]
[1751987078378,1.69905309,658.76,658.31,1.929]
[1751987078674,1.69905309,658.75,658.31,1.929]
[1751987082180,1.69905309,658.78,658.31,1.929]
[1751987082384,1.69905309,658.79,658.31,1.929]
[1751987083679,1.69905309,658.8,658.31,1.929]
[1751987085483,1.69905309,658.84,658.31,1.929]
[1751987086682,1.69905309,658.84,658.31,3.63455505]
[1751987087586,1.69905309,658.84,658.31,1.70555505]
[1751987089788,1.69905309,658.8,658.37,1.70555505]
[1751987090484,1.69905309,658.81,658.36,1.70555505]
[1751987091186,1.69905309,658.8,658.37,1.26]
[1751987093489,1.69905309,658.81,658.37,1.26]
[1751987096088,1.69905309,658.86,658.4,1.70555505]
[1751987097095,1.69905309,658.86,658.39,1.70555505]
[1751987098293,1.69905309,658.87,658.39,1.70555505]
[1751987099092,1.69905309,658.87,658.38,1.70555505]
[1751987102390,1.69905309,658.88,658.37,2.96555505]
[1751987102991,1.69905309,658.89,658.38,1.70555505]
[1751987104395,1.69905309,658.92,658.37,1.26]
[1751987104599,1.69905309,659.01,658.43,1.70555505]
[1751987104900,1.69905309,659.02,658.44,1.70555505]
[1751987105100,1.69905309,659.01,658.44,1.70555505]
[1751987105300,1.69905309,659.02,658.44,1.70555505]
[1751987105501,1.69905309,659.05,658.47,1.70555505]
[1751987105699,1.69905309,659.06,658.47,1.70555505]
[1751987106299,1.69905309,659.07,658.46,1.70555505]
[1751987106904,1.69905309,659.07,658.45,1.70555505]
[1751987107302,1.69905309,659.08,658.45,1.70555505]
[1751987108208,1.69905309,659.09,658.45,1.70555505]
[1751987108409,1.69905309,659.09,658.44,1.70555505]
[1751987109206,1.69905309,659.1,658.43,1.70555505]
[1751987110311,1.69905309,659.1,658.42,1.70555505]
[1751987110709,1.96319272,659.11,658.42,1.70555505]
[1751987111309,1.96319272,659.11,658.41,1.70555505]
[1751987111913,1.96319272,659.11,658.42,1.70555505]
[1751987112308,1.69905309,659.1,658.43,1.70555505]
[1751987113515,1.96319272,659.11,658.43,1.70555505]
[1751987114315,1.96319272,659.11,658.42,1.70555505]
[1751987114814,1.96319272,659.11,658.43,1.70555505]
[1751987115314,0.26413963,659.11,658.42,1.70555505]
[1751987115712,0.26413963,659.11,658.43,1.70555505]
[1751987116912,1.96319272,659.11,658.45,1.70555505]
[1751987117113,1.69905309,659.12,658.45,1.70555505]
[1751987117315,1.69905309,659.17,658.5,1.70555505]
[1751987117513,1.69905309,659.21,658.54,1.70555505]
[1751987118214,1.96315864,659.22,658.54,1.70555505]
[1751987119217,0.26410555,659.22,658.53,1.70555505]
[1751987119926,1.96315864,659.22,658.53,1.70555505]
[1751987120115,1.96315864,659.22,658.52,1.70555505]
[1751987120323,0.26410555,659.22,658.47,1.70555505]
[1751987123322,0.26410555,659.22,658.46,1.70555505]
[1751987124320,0.26410555,659.22,658.45,1.70555505]
[1751987125721,0.26410555,659.22,658.46,1.70555505]
[1751987126220,0.26410555,659.22,658.45,1.70555505]
[1751987126923,0.26410555,659.22,658.46,1.70555505]
[1751987127720,0.26410555,659.22,658.45,1.70555505]
[1751987128224,0.26410555,659.22,658.46,1.70555505]
[1751987128424,0.26410555,659.22,658.45,1.70555505]
[1751987129021,0.26410555,659.22,658.44,1.70555505]
[1751987129826,0.26410555,659.22,658.43,1.70555505]
[1751987130324,0.26410555,659.22,658.37,1.26]
[1751987130325,0.26410555,659.22,658.46,1.70555505]
[1751987132325,0.26410555,659.22,658.47,1.70555505]
[1751987132628,0.26410555,659.22,658.46,1.70555505]
[1751987133425,0.26410555,659.22,658.45,1.70555505]
[1751987134539,0.26410555,659.22,658.46,1.70555505]
[1751987134834,1.96315864,659.22,658.39,1.70555505]
[1751987135030,1.96315864,659.22,658.38,1.70555505]
[1751987135230,1.69905309,659.21,658.4,2.051]
[1751987137435,1.69905309,659.2,658.4,2.051]
[1751987138134,1.69905309,659.19,658.4,3.75655505]
[1751987138429,1.69905309,659.19,658.41,1.70555505]
[1751987139129,1.69905309,659.19,658.4,3.75655505]
[1751987139332,1.69905309,659.19,658.41,1.70555505]
[1751987140434,1.69905309,659.19,658.42,1.70555505]
[1751987141230,1.69905309,659.18,658.42,1.70555505]
[1751987141630,1.69187718,659.18,658.42,1.69815255]
[1751987142635,1.69187718,659.17,658.45,1.69815255]
[1751987143230,1.69187718,659.16,658.45,1.69815255]
[1751987143532,1.69187718,659.16,658.46,1.69815255]
[1751987145435,1.69187718,659.15,658.46,1.69815255]
[1751987146231,1.69187718,659.15,658.47,1.69815255]
[1751987146835,1.69187718,659.14,658.49,1.69815255]
[1751987147332,1.69187718,659.21,658.57,1.69815255]
[1751987147631,1.69187718,659.2,658.57,1.69815255]
[1751987147832,1.69187718,659.2,658.56,1.69815255]
[1751987148337,1.69187718,659.21,658.55,1.69815255]
[1751987148537,1.69187718,659.26,658.49,1.69815255]
[1751987149334,1.69187718,659.26,658.5,1.69815255]
[1751987150038,1.69187718,659.31,658.55,1.69815255]
[1751987150535,0.26406547,659.32,658.55,1.69815255]
[1751987150536,1.95594265,659.32,658.55,1.69815255]
[1751987150738,1.95594265,659.32,658.4,2.051]
[1751987150739,0.26406547,659.32,658.63,1.69815255]
[1751987153036,1.69187718,659.4,658.63,1.69815255]
[1751987153242,1.69187718,659.41,658.64,1.69815255]
[1751987153943,1.69187718,659.41,658.63,1.69815255]
[1751987154142,1.69187718,659.41,658.64,1.69815255]
[1751987156943,1.69187718,659.41,658.63,1.69815255]
[1751987157143,1.69187718,659.41,658.64,1.69815255]
[1751987158247,0.26401839,659.43,658.48,2.26944205]
[1751987158248,1.69187718,659.4,658.63,1.69815255]
[1751987158448,1.69187718,659.35,658.72,1.69815255]
[1751987159249,1.69187718,659.34,658.72,1.69815255]
[1751987160452,1.69187718,659.36,658.7,1.69815255]
[1751987161152,1.69187718,659.36,658.69,1.69815255]
[1751987161746,1.69187718,659.36,658.7,1.69815255]
[1751987162151,1.69187718,659.36,658.69,1.69815255]
[1751987162350,1.69187718,659.35,658.7,1.69815255]
[1751987162554,1.69187718,659.36,658.69,1.69815255]
[1751987163156,1.69187718,659.36,658.68,1.69815255]
[1751987163349,1.69187718,659.36,658.69,1.69815255]
[1751987164255,1.69187718,659.35,658.69,1.69815255]
[1751987166756,1.69187718,659.35,658.7,1.69815255]
[1751987167156,1.69187718,659.35,658.69,1.69815255]
[1751987167859,1.69187718,659.35,658.7,1.69815255]
[1751987170462,1.69187718,659.34,658.71,1.69815255]
[1751987171059,1.69187718,659.35,658.71,1.69815255]
[1751987171259,1.69187718,659.34,658.71,1.69815255]
[1751987172163,1.69187718,659.35,658.71,1.69815255]
[1751987172363,1.69187718,659.34,658.71,1.69815255]
[1751987172560,1.69187718,659.34,658.72,1.69815255]
[1751987172860,1.69187718,659.36,658.75,1.69815255]
[1751987173963,1.69187718,659.36,658.74,1.69815255]
[1751987174164,1.69187718,659.37,658.74,1.69815255]
[1751987174360,1.69187718,659.36,658.74,1.69815255]
[1751987175458,1.69187718,659.36,658.75,1.69815255]
[1751987176558,1.69187718,659.4,658.68,1.69815255]
[1751987177164,1.69187718,659.41,658.68,1.69815255]
[1751987181568,1.69187718,659.41,658.67,1.69815255]
[1751987185968,0.26401839,659.43,658.66,1.898]
[1751987185969,1.69187718,659.42,658.66,1.898]
[1751987186372,1.69187718,659.41,658.68,1.69815255]
[1751987186771,1.69187718,659.4,658.67,1.69815255]
[1751987188171,1.69511199,659.4,658.67,1.69877781]
[1751987188874,1.69511199,659.39,658.67,1.69877781]
[1751987189771,1.69511199,659.39,658.68,1.69877781]
[1751987190276,1.69511199,659.37,658.66,3.59677781]
[1751987190476,1.69511199,659.36,658.66,1.898]
[1751987191372,1.69511199,659.33,658.7,1.69877781]
[1751987191676,1.69511199,659.25,658.66,1.898]
[1751987192278,1.69511199,659.26,658.66,1.898]
[1751987192479,1.69511199,659.27,658.66,1.898]
[1751987192672,1.69511199,659.28,658.66,1.898]
[1751987193177,1.69511199,659.25,658.66,1.898]
[1751987196378,1.69511199,659.24,658.66,1.898]
[1751987198182,1.69511199,659.23,658.66,1.898]
[1751987199280,1.69511199,659.22,658.66,1.898]
[1751987199884,1.69511199,659.23,658.66,1.898]
[1751987200286,1.69511199,659.22,658.66,1.898]
[1751987200987,1.69511199,659.25,658.66,1.898]
[1751987201181,1.69511199,659.24,658.66,1.898]
[1751987202285,1.69511199,659.23,658.66,1.898]
[1751987203184,1.69511199,659.22,658.66,1.898]
[1751987205387,1.69511199,659.21,658.66,1.898]
[1751987206387,1.69511199,659.2,658.66,1.898]
[1751987206786,1.69511199,659.22,658.66,1.898]
[1751987209590,1.69511199,659.2,658.66,1.898]
[1751987210889,1.69511199,659.24,658.66,3.59677781]
[1751987211985,1.69511199,659.25,658.66,3.59677781]
[1751987212191,1.69511199,659.24,658.66,3.59677781]
[1751987212392,1.69511199,659.25,658.66,3.59677781]
[1751987213092,1.69511199,659.24,658.66,3.59677781]
[1751987213391,1.69511199,659.25,658.66,3.59677781]
[1751987213589,1.69511199,659.26,658.68,1.69877781]
[1751987216692,1.69511199,659.23,658.73,1.69877781]
[1751987217094,1.69511199,659.25,658.71,1.69877781]
[1751987217594,1.69511199,659.32,658.66,1.898]
[1751987220094,1.69511199,659.39,658.8,1.69877781]
[1751987220493,1.69511199,659.39,658.66,4.16744205]
[1751987220494,1.69511199,659.38,658.81,1.69877781]
[1751987220697,1.69511199,659.39,658.88,1.69877781]
[1751987221795,1.69511199,659.4,658.88,1.69877781]
[1751987222403,1.69511199,659.45,658.88,1.69877781]
[1751987223299,1.69511199,659.46,658.87,1.69877781]
[1751987223502,1.69511199,659.45,658.87,1.69877781]
[1751987224302,1.69511199,659.46,658.87,1.69877781]
[1751987225203,1.69511199,659.46,658.86,1.69877781]
[1751987225403,1.69511199,659.47,658.87,1.69877781]
[1751987226304,1.69511199,659.48,658.86,1.69877781]
[1751987227504,0.26400737,659.51,658.73,2.26944205]
[1751987227805,1.69655662,659.48,658.86,1.70030495]